bitfinex/quotes_BTCUSD_20241123
["timestamp","ask_amount","ask_price","bid_price","bid_amount"]
[1732372385251,0.10201427,98568.0,98567.0,0.040581]
[1732372397674,0.10201427,98568.0,98567.0,0.04690997]
[1732372397886,0.22681427,98568.0,98567.0,0.00632897]
[1732372398110,0.25839206,98568.0,98567.0,0.040581]
[1732372398333,0.22681427,98568.0,98567.0,0.040581]
[1732372398550,0.2583921,98568.0,98567.0,0.040581]
[1732372399001,0.2583921,98568.0,98541.0,0.2]
[1732372399002,0.22681427,98568.0,98554.0,0.040586]
[1732372399216,0.10201427,98556.0,98555.0,0.04691557]
[1732372401243,0.22681427,98556.0,98555.0,0.04691557]
[1732372401462,0.10201427,98556.0,98555.0,0.04691557]
[1732372401906,0.10201427,98556.0,98555.0,0.04691565]
[1732372408546,0.10201427,98556.0,98555.0,0.040586]
[1732372408778,0.10201427,98556.0,98555.0,0.04691574]
[1732372409845,0.10201427,98556.0,98555.0,0.08881007]
[1732372410090,0.10201427,98556.0,98555.0,0.04691574]
[1732372411178,0.10201427,98556.0,98555.0,0.04691574]
[1732372412791,0.10201427,98556.0,98555.0,0.17301574]
[1732372413014,0.10201427,98556.0,98555.0,0.37301574]
[1732372413269,0.001721,98568.0,98567.0,0.040581]
[1732372413492,0.10373527,98568.0,98567.0,0.12601074]
[1732372413940,0.10373527,98568.0,98567.0,0.17301074]
[1732372415354,0.10373527,98568.0,98567.0,0.166681]
[1732372415524,0.10373527,98568.0,98567.0,0.17300888]
[1732372417667,0.10373527,98568.0,98567.0,0.12600888]
[1732372419027,0.10373527,98568.0,98567.0,0.142681]
[1732372419303,0.08229325,98568.0,98567.0,0.19080188]
[1732372420508,0.08229325,98568.0,98567.0,0.11170188]
[1732372424069,0.08401445,98568.0,98567.0,0.11170188]
[1732372424550,0.08401445,98568.0,98566.0,0.0181917]
[1732372424789,0.08401445,98568.0,98567.0,0.040581]
[1732372430583,0.21428796,98568.0,98563.0,0.040582]
[1732372430808,0.13199471,98568.0,98567.0,0.040581]
[1732372431030,0.1234212,98568.0,98567.0,0.040581]
[1732372431917,0.22543547,98568.0,98567.0,0.040581]
[1732372436030,0.10373547,98568.0,98567.0,0.040581]
[1732372436749,0.10373547,98568.0,98567.0,0.04691003]
[1732372437933,0.10373547,98568.0,98559.0,0.040584]
[1732372438171,0.10201427,98567.0,98563.0,0.040582]
[1732372438420,0.10201427,98567.0,98566.0,0.040581]
[1732372446103,0.10201427,98567.0,98566.0,0.06102111]
[1732372449940,0.10201427,98567.0,98566.0,0.06735009]
[1732372452283,0.0725063,98567.0,98566.0,0.06735009]
[1732372452501,0.0725063,98567.0,98566.0,0.040581]
[1732372453383,0.0017212,98568.0,98567.0,0.040581]
[1732372453880,0.0463,98587.0,98584.0,0.040574]
[1732372454101,0.10373447,98585.0,98584.0,0.040574]
[1732372457357,0.10373447,98585.0,98584.0,0.06109129]
[1732372458484,0.10373447,98585.0,98584.0,0.040574]
[1732372459843,0.10265574,98585.0,98584.0,0.040574]
[1732372467542,0.10265574,98585.0,98570.0,0.0008604]
[1732372467543,0.10265574,98585.0,98566.0,0.09201346]
[1732372467749,0.10201427,98584.0,98583.0,0.040574]
[1732372473762,0.10185268,98584.0,98583.0,0.040574]
[1732372474805,0.10185268,98584.0,98583.0,0.08193609]
[1732372475119,0.10185268,98584.0,98583.0,0.040574]
[1732372478940,0.07777308,98584.0,98583.0,0.040574]
[1732372479363,0.07777308,98584.0,98583.0,0.08133584]
[1732372479559,0.07777308,98584.0,98583.0,0.08766329]
[1732372479806,0.07777308,98584.0,98583.0,0.04690145]
[1732372480029,0.00064147,98585.0,98584.0,0.03043]
[1732372480320,0.10265574,98585.0,98584.0,0.03675745]
[1732372480802,0.10201427,98585.0,98584.0,0.03675745]
[1732372481747,0.10201427,98585.0,98584.0,0.03675741]
[1732372482437,0.0489,98600.0,98584.0,0.00632741]
[1732372482648,0.0489,98600.0,98599.0,0.030426]
[1732372483538,0.0489,98600.0,98580.0,0.030431]
[1732372483539,0.0489,98600.0,98575.0,0.08025851]
[1732372483800,0.0489,98600.0,98599.0,0.030426]
[1732372485027,0.15091427,98600.0,98599.0,0.030426]
[1732372486383,0.0474,98599.0,98597.0,0.030426]
[1732372486601,0.18031427,98598.0,98597.0,0.030426]
[1732372486845,0.22771427,98598.0,98597.0,0.030426]
[1732372488187,0.22771427,98598.0,98597.0,0.0367536]
[1732372488411,0.22771427,98598.0,98597.0,0.03675353]
[1732372488640,0.22771427,98598.0,98597.0,0.03675347]
[1732372489293,0.22771427,98598.0,98597.0,0.03675346]
[1732372489909,0.22771427,98598.0,98597.0,0.030426]
[1732372490133,0.22943507,98598.0,98597.0,0.030426]
[1732372491056,0.0465,98597.0,98567.0,0.15]
[1732372491253,0.0465,98597.0,98596.0,0.030427]
[1732372491705,0.35077,98597.0,98596.0,0.030427]
[1732372492434,0.35077,98597.0,98596.0,0.03675481]
[1732372494445,0.45278427,98597.0,98596.0,0.03675481]
[1732372495561,0.45278427,98597.0,98596.0,0.03085481]
[1732372496206,0.45278427,98597.0,98596.0,0.024527]
[1732372497727,0.45278427,98597.0,98596.0,0.021427]
[1732372497955,0.45278427,98597.0,98592.0,0.030428]
[1732372498170,0.10201427,98596.0,98595.0,0.030427]
[1732372498642,0.40628427,98596.0,98595.0,0.030427]
[1732372499295,0.45538427,98596.0,98595.0,0.030427]
[1732372506440,0.45538427,98596.0,98595.0,0.025527]
[1732372511241,0.48699804,98596.0,98595.0,0.025527]
[1732372511464,0.45538427,98596.0,98595.0,0.025527]
[1732372511679,0.45986968,98596.0,98595.0,0.025527]
[1732372512127,0.49148456,98596.0,98595.0,0.025527]
[1732372512800,0.49148456,98596.0,98593.0,0.030427]
[1732372513032,0.45986968,98596.0,98593.0,0.030427]
[1732372513516,0.03161728,98595.0,98594.0,0.030427]
[1732372513728,0.13363155,98595.0,98594.0,0.030427]
[1732372513953,0.0815,98591.0,98579.0,0.09093127]
[1732372514169,0.10201427,98580.0,98571.0,0.09093127]
[1732372514377,0.42921023,98590.0,98566.0,0.00070562]
[1732372514378,0.10201427,98578.0,98566.0,0.00070562]
[1732372514585,0.10201427,98578.0,98577.0,0.030433]
[1732372514798,0.1336236,98578.0,98575.0,0.030433]
[1732372514999,0.1336236,98578.0,98568.0,0.030435]
[1732372515000,0.40628427,98578.0,98573.0,0.030434]
[1732372515671,0.40628427,98578.0,98576.0,0.0312933]
[1732372515894,0.40628427,98578.0,98576.0,0.0008603]
[1732372516139,0.40628427,98578.0,98576.0,0.0312933]
[1732372516563,0.40628427,98578.0,98576.0,0.0008603]
[1732372516776,0.40628427,98578.0,98577.0,0.030433]
[1732372517669,0.40628427,98578.0,98576.0,0.0008603]
[1732372518306,0.006665,98577.0,98576.0,0.0008603]
[1732372518507,0.10867927,98577.0,98576.0,0.0008603]
[1732372518769,0.41294927,98577.0,98576.0,0.0008603]
[1732372518974,0.41294927,98577.0,98576.0,0.0312933]
[1732372522679,0.41294927,98577.0,98576.0,0.0008603]
[1732372522900,0.46234927,98577.0,98576.0,0.0008603]
[1732372524648,0.45568427,98577.0,98576.0,0.0008603]
[1732372526021,0.53718427,98577.0,98576.0,0.0008603]
[1732372526431,0.63862727,98577.0,98576.0,0.0008603]
[1732372527158,0.56873451,98577.0,98576.0,0.0008603]
[1732372527388,0.67017751,98577.0,98576.0,0.0008603]
[1732372527621,0.56873451,98577.0,98576.0,0.0008603]
[1732372532838,0.53718427,98577.0,98576.0,0.0008603]
[1732372533059,0.56870423,98577.0,98576.0,0.0008603]
[1732372533277,0.53718427,98577.0,98576.0,0.0008603]
[1732372533501,0.56870432,98577.0,98576.0,0.0008603]
[1732372534188,0.53718427,98577.0,98576.0,0.0008603]
[1732372540125,0.0479,98576.0,98540.0,0.15]
[1732372540373,0.14991427,98565.0,98564.0,0.030437]
[1732372540604,0.14991427,98565.0,98542.0,0.15]
[1732372540840,0.45418427,98565.0,98550.0,0.030441]
[1732372541083,0.45418427,98565.0,98548.0,0.04176179]
[1732372541305,0.45418427,98565.0,98548.0,0.0313016]
[1732372541523,0.45418427,98565.0,98549.0,0.030441]
[1732372541770,0.45418427,98565.0,98548.0,0.0008606]
[1732372541771,0.0816,98564.0,98548.0,0.0008606]
[1732372542006,0.10201427,98563.0,98548.0,0.0008606]
[1732372542240,0.40628427,98563.0,98548.0,0.0008606]
[1732372542451,0.40628427,98563.0,98548.0,0.0313016]
[1732372542705,0.40628427,98563.0,98549.0,0.030441]
[1732372543176,0.40628427,98563.0,98550.0,0.030441]
[1732372543400,0.40628427,98563.0,98552.0,0.03044]
[1732372543631,0.40628427,98563.0,98549.0,0.030441]
[1732372543632,0.40628427,98563.0,98550.0,0.030441]
[1732372543897,0.40628427,98563.0,98549.0,0.030441]
[1732372544147,0.40628427,98563.0,98551.0,0.03044]
[1732372544363,0.0479,98562.0,98549.0,0.030441]
[1732372544549,0.10201427,98561.0,98552.0,0.03044]
[1732372545055,0.10201427,98561.0,98549.0,0.030441]
[1732372545549,0.10201427,98561.0,98541.0,0.04858428]
[1732372545775,0.10201427,98561.0,98550.0,0.030441]
[1732372545989,0.0479,98560.0,98547.0,0.030442]
[1732372546207,0.14991427,98559.0,98548.0,0.030441]
[1732372546863,0.14991427,98559.0,98549.0,0.030441]
[1732372547087,0.14991427,98559.0,98547.0,0.030442]
[1732372547088,0.14991427,98559.0,98548.0,0.030441]
[1732372547319,0.0498,98558.0,98524.0,0.24152183]
[1732372547522,0.10201427,98557.0,98525.0,0.15]
[1732372547971,0.10201427,98557.0,98544.0,0.030442]
[1732372547972,0.0498,98556.0,98544.0,0.030442]
[1732372548212,0.10201427,98555.0,98546.0,0.030442]
[1732372548448,0.10201427,98555.0,98547.0,0.030442]
[1732372548664,0.10201427,98555.0,98546.0,0.030442]
[1732372548879,0.10201427,98555.0,98548.0,0.030441]
[1732372549094,0.0498,98554.0,98548.0,0.030441]
[1732372549308,0.10201427,98553.0,98541.0,0.030444]
[1732372549559,0.10201427,98553.0,98544.0,0.030443]
[1732372549560,0.1306,98552.0,98544.0,0.030443]
[1732372549772,0.10201427,98551.0,98545.0,0.030442]
[1732372549993,0.10201427,98551.0,98546.0,0.030442]
[1732372550439,0.10201427,98551.0,98535.0,0.0817]
[1732372550440,0.10201427,98551.0,98543.0,0.030443]
[1732372550669,0.10201427,98551.0,98544.0,0.030443]
[1732372550921,0.0498,98550.0,98536.0,0.15]
[1732372551135,0.0498,98548.0,98540.0,0.030444]
[1732372551350,0.10201427,98547.0,98539.0,0.040592]
[1732372551566,0.10201427,98547.0,98540.0,0.040592]
[1732372551779,0.10201427,98547.0,98539.0,0.040592]
[1732372551996,0.0498,98546.0,98539.0,0.040592]
[1732372552248,0.10201427,98545.0,98539.0,0.040592]
[1732372552479,0.0498,98544.0,98539.0,0.040592]
[1732372552697,0.10201427,98543.0,98542.0,0.040591]
[1732372553156,0.10201427,98543.0,98539.0,0.040592]
[1732372553157,0.0498,98542.0,98539.0,0.040592]
[1732372553404,0.10201427,98541.0,98539.0,0.040592]
[1732372554143,0.10201427,98541.0,98540.0,0.040592]
[1732372567913,0.10373547,98541.0,98540.0,0.040592]
[1732372568784,2e-07,98541.0,98540.0,0.040592]
[1732372569009,2e-07,98541.0,98540.0,0.04816731]
[1732372569236,2e-07,98541.0,98540.0,0.33443998]
[1732372569445,2e-07,98541.0,98540.0,0.32686467]
[1732372569637,2e-07,98541.0,98540.0,0.32687523]
[1732372569951,2e-07,98541.0,98540.0,0.273392]
[1732372570552,2e-07,98541.0,98538.0,0.18962847]
[1732372570772,2e-07,98541.0,98540.0,0.040592]
[1732372571199,2e-07,98541.0,98540.0,0.22226111]
[1732372572051,2e-07,98541.0,98540.0,0.040592]
[1732372572272,2e-07,98541.0,98540.0,0.22224314]
[1732372572491,2e-07,98541.0,98540.0,0.040592]
[1732372573161,2e-07,98541.0,98540.0,0.22223841]
[1732372573390,2e-07,98541.0,98540.0,0.040592]
[1732372573838,0.18090626,98550.0,98549.0,0.050736]
[1732372574086,0.14245076,98550.0,98549.0,0.38237254]
[1732372574301,0.00052441,98550.0,98549.0,0.200736]
[1732372574517,0.00052441,98550.0,98549.0,0.2093129]
[1732372574732,0.00052441,98550.0,98549.0,0.20829836]
[1732372575238,0.00052441,98550.0,98549.0,0.19446143]
[1732372575490,0.00052441,98550.0,98549.0,0.20829836]
[1732372576380,0.00052441,98550.0,98549.0,0.05829836]
[1732372576801,0.00052441,98550.0,98549.0,0.05829709]
[1732372578518,0.00052441,98550.0,98547.0,0.050737]
[1732372579178,0.00052441,98550.0,98549.0,0.050736]
[1732372579621,0.00224561,98550.0,98549.0,0.050736]
[1732372581196,6.1e-07,98550.0,98549.0,0.39036447]
[1732372581410,0.0017216,98561.0,98549.0,0.39036447]
[1732372581411,0.0017216,98561.0,98560.0,0.05073]
[1732372583338,0.0017216,98561.0,98560.0,0.05077]
[1732372583581,0.0017216,98561.0,98560.0,0.05073]
[1732372584321,0.0017216,98561.0,98560.0,0.05077]
[1732372584557,0.0017216,98561.0,98560.0,0.05073]
[1732372587226,0.0017216,98561.0,98560.0,0.092548]
[1732372587871,6e-07,98561.0,98560.0,0.092548]
[1732372588088,6e-07,98561.0,98560.0,0.041818]
[1732372588520,6e-07,98561.0,98560.0,0.05073]
[1732372590845,6e-07,98561.0,98560.0,0.0704945]
[1732372591924,6e-07,98561.0,98560.0,0.07804886]
[1732372592842,6e-07,98561.0,98560.0,0.07677344]
[1732372593494,6e-07,98561.0,98560.0,0.07167905]
[1732372594611,6e-07,98561.0,98560.0,0.06412314]
[1732372596883,0.0820006,98561.0,98560.0,0.06412314]
[1732372597866,0.1277006,98561.0,98560.0,0.06412314]
[1732372598726,0.1277006,98561.0,98560.0,0.06416314]
[1732372599195,0.1277006,98561.0,98560.0,0.06412314]
[1732372600947,0.0457006,98561.0,98560.0,0.06412314]
[1732372602343,0.0457,98596.0,98594.0,0.060855]
[1732372602560,0.10373467,98595.0,98594.0,0.060855]
[1732372605467,0.0457,98596.0,98595.0,0.060855]
[1732372605684,0.01855554,98596.0,98595.0,0.060855]
[1732372605989,0.02521172,98596.0,98595.0,0.060855]
[1732372606112,0.02303107,98596.0,98595.0,0.060855]
[1732372606347,0.05478146,98599.0,98598.0,0.060853]
[1732372607037,0.05478146,98599.0,98589.0,0.05433722]
[1732372607038,0.05478146,98599.0,98590.0,0.071001]
[1732372607291,0.05478146,98599.0,98598.0,0.060853]
[1732372608123,0.02902926,98599.0,98598.0,0.060853]
[1732372609769,0.0400078,98601.0,98600.0,0.060851]
[1732372610004,0.14202207,98601.0,98600.0,0.060851]
[1732372611125,0.10133234,98601.0,98600.0,0.060851]
[1732372611785,0.10133234,98601.0,98600.0,0.08097741]
[1732372612022,0.10133234,98601.0,98600.0,0.23097741]
[1732372613863,0.10133234,98601.0,98600.0,0.060851]
[1732372617555,0.10305214,98601.0,98600.0,0.060851]
[1732372621019,0.10305214,98601.0,98600.0,0.0811604]
[1732372621523,0.09115405,98601.0,98600.0,0.0811604]
[1732372623511,0.13955405,98601.0,98600.0,0.0811604]
[1732372623722,0.13955405,98601.0,98600.0,0.210851]
[1732372624618,0.13955405,98601.0,98600.0,0.060851]
[1732372628660,0.13955405,98601.0,98600.0,0.210851]
[1732372629134,0.13955405,98601.0,98600.0,0.060851]
[1732372630288,0.13955405,98601.0,98600.0,0.0617109]
[1732372630687,0.07087005,98601.0,98600.0,0.0617109]
[1732372631374,0.07087005,98601.0,98600.0,0.0819949]
[1732372632478,0.05058605,98601.0,98600.0,0.08957001]
[1732372632696,8e-07,98601.0,98600.0,0.08957001]
[1732372635495,8e-07,98601.0,98600.0,0.08957112]
[1732372636376,0.10201507,98601.0,98600.0,0.08957112]
[1732372636751,0.10201507,98601.0,98600.0,0.08866634]
[1732372636952,0.10201507,98601.0,98600.0,0.08866656]
[1732372637752,0.18461507,98601.0,98600.0,0.08866656]
[1732372637965,0.18461507,98601.0,98600.0,0.08109012]
[1732372640576,0.18461507,98601.0,98596.0,0.081139]
[1732372640729,0.0826,98601.0,98600.0,0.081135]
[1732372641771,0.18461427,98601.0,98600.0,0.081135]
[1732372642405,0.18633407,98601.0,98600.0,0.081135]
[1732372646180,0.18633407,98601.0,98600.0,0.08871339]
[1732372647512,0.16605007,98601.0,98600.0,0.08871339]
[1732372648195,0.06316607,98601.0,98600.0,0.08871339]
[1732372648423,8e-07,98601.0,98600.0,0.08871339]
[1732372648897,8e-07,98601.0,98600.0,0.08871411]
[1732372650556,8e-07,98601.0,98600.0,0.17928663]
[1732372650785,8e-07,98601.0,98600.0,0.08871411]
[1732372652004,0.10201507,98601.0,98600.0,0.08871411]
[1732372652869,0.10201507,98601.0,98600.0,0.32963597]
[1732372653294,0.10201507,98601.0,98600.0,0.24850097]
[1732372653546,0.10201507,98601.0,98600.0,0.11132276]
[1732372654007,0.10201507,98601.0,98600.0,0.0819949]
[1732372654622,0.0802,98602.0,98601.0,0.081135]
[1732372654882,0.10201427,98602.0,98601.0,0.21699378]
[1732372655081,0.10201427,98602.0,98601.0,0.21747107]
[1732372655327,0.10201427,98602.0,98601.0,0.081135]
[1732372658649,0.14701427,98602.0,98601.0,0.081135]
[1732372659635,0.2375858,98602.0,98601.0,0.081135]
[1732372664882,0.26916973,98602.0,98601.0,0.081135]
[1732372666702,0.27088953,98602.0,98601.0,0.081135]
[1732372668092,0.05857153,98589.0,98588.0,0.04128327]
[1732372668293,0.1605858,98589.0,98588.0,0.27242827]
[1732372668504,0.1605858,98589.0,98588.0,0.231145]
[1732372669850,0.1605858,98589.0,98588.0,0.081145]
[1732372680675,0.1123858,98589.0,98588.0,0.082005]
[1732372680898,0.0017208,98607.0,98590.0,0.15]
[1732372680899,6e-07,98607.0,98590.0,0.15]
[1732372681117,6e-07,98607.0,98606.0,0.091272]
[1732372683202,6e-07,98607.0,98604.0,0.091273]
[1732372683203,6e-07,98607.0,98598.0,0.07717521]
[1732372683473,6e-07,98607.0,98606.0,0.091272]
[1732372683700,0.10201487,98607.0,98606.0,0.091272]
[1732372687884,0.2352864,98607.0,98606.0,0.091272]
[1732372692862,0.23976316,98607.0,98606.0,0.091272]
[1732372693094,0.2713466,98607.0,98606.0,0.091272]
[1732372694901,0.2713466,98607.0,98606.0,0.08147869]
[1732372695362,0.01037153,98599.0,98598.0,0.0008599]
[1732372695563,0.24325004,98599.0,98598.0,0.0921389]
[1732372695784,0.27483348,98599.0,98598.0,0.0921389]
[1732372695994,0.57909348,98599.0,98598.0,0.0921389]
[1732372696228,0.57909348,98599.0,98598.0,0.0008599]
[1732372696431,0.13617153,98590.0,98589.0,0.091288]
[1732372696647,0.26976924,98590.0,98589.0,0.091288]
[1732372696859,0.57908763,98590.0,98589.0,0.091288]
[1732372704037,0.01037153,98571.0,98560.0,0.0008602]
[1732372704231,0.10201427,98570.0,98569.0,0.091306]
[1732372704438,0.42219109,98570.0,98569.0,0.091306]
[1732372706369,0.4769902,98570.0,98569.0,0.091306]
[1732372706574,0.42219109,98570.0,98569.0,0.091306]
[1732372708599,0.42192231,98570.0,98569.0,0.091306]
[1732372712836,0.42192231,98570.0,98560.0,0.0008602]
[1732372712837,0.01037153,98561.0,98560.0,0.0008602]
[1732372713068,0.1905858,98561.0,98560.0,0.0921742]
[1732372713268,0.50036506,98561.0,98560.0,0.0921742]
[1732372714515,0.55016506,98561.0,98560.0,0.0921742]
[1732372718060,0.56291027,98561.0,98560.0,0.0921742]
[1732372718282,0.55016506,98561.0,98560.0,0.0921742]
[1732372724514,0.47196506,98561.0,98560.0,0.0921742]
[1732372725282,0.50345764,98561.0,98560.0,0.0921742]
[1732372727680,0.40672103,98561.0,98560.0,0.2421742]
[1732372727883,0.40672103,98561.0,98560.0,0.13430104]
[1732372730024,0.40672103,98561.0,98560.0,0.08848449]
[1732372730234,0.40844263,98561.0,98560.0,0.08848449]
[1732372731748,0.40844263,98561.0,98555.0,0.01998965]
[1732372731749,0.40844263,98561.0,98557.0,0.15]
[1732372731973,0.40844263,98561.0,98560.0,0.091314]
[1732372732178,0.40844263,98561.0,98560.0,0.241314]
[1732372737038,0.41881416,98561.0,98560.0,0.241314]
[1732372741038,0.45041151,98561.0,98560.0,0.241314]
[1732372742193,0.45041151,98561.0,98560.0,0.2421748]
[1732372744829,0.44991151,98561.0,98560.0,0.2421748]
[1732372748444,0.44991151,98561.0,98560.0,0.2421748]
[1732372749353,0.49961151,98561.0,98560.0,0.2421748]
[1732372749562,0.49961151,98561.0,98555.0,0.01998965]
[1732372749563,0.01037153,98556.0,98555.0,0.01998965]
[1732372749769,0.01037153,98556.0,98555.0,0.12145565]
[1732372749770,0.1620858,98556.0,98555.0,0.12145565]
[1732372749990,0.47179307,98556.0,98555.0,0.12145565]
[1732372751327,0.5033969,98556.0,98555.0,0.12145565]
[1732372751555,0.5033969,98556.0,98555.0,0.27145565]
[1732372752031,0.48978543,98556.0,98555.0,0.27145565]
[1732372753594,0.4581816,98556.0,98555.0,0.27145565]
[1732372754253,0.4581816,98556.0,98555.0,0.25094416]
[1732372754480,0.4581816,98556.0,98555.0,0.27086532]
[1732372754721,0.48978017,98556.0,98555.0,0.27086532]
[1732372754963,0.48978017,98556.0,98555.0,0.27172612]
[1732372755687,0.4581816,98556.0,98555.0,0.27172612]
[1732372757227,0.41172154,98556.0,98555.0,0.27172612]
[1732372759597,0.44332095,98556.0,98555.0,0.27172612]
[1732372760014,0.35084254,98556.0,98555.0,0.27172612]
[1732372760721,0.38244225,98556.0,98555.0,0.27172612]
[1732372760931,0.35084254,98556.0,98555.0,0.27172612]
[1732372761355,0.35035207,98556.0,98555.0,0.27172612]
[1732372761568,0.38195155,98556.0,98555.0,0.27172612]
[1732372761777,0.35481986,98556.0,98555.0,0.27172612]
[1732372762516,0.35394369,98556.0,98555.0,0.27172612]
[1732372764867,0.35394369,98556.0,98555.0,0.25180496]
[1732372765086,0.40104369,98556.0,98555.0,0.25180496]
[1732372765320,1.90104369,98556.0,98555.0,0.25180496]
[1732372766053,0.40104369,98556.0,98555.0,0.25180496]
[1732372767618,0.40104369,98556.0,98550.0,0.091323]
[1732372767619,0.40104369,98556.0,98553.0,0.15]
[1732372767831,0.10201427,98554.0,98553.0,0.251468]
[1732372768265,0.41169967,98554.0,98553.0,0.251468]
[1732372768484,0.44331373,98554.0,98553.0,0.251468]
[1732372768902,0.44331373,98554.0,98553.0,0.274468]
[1732372770828,0.44331373,98554.0,98553.0,0.251468]
[1732372771083,0.44331373,98554.0,98553.0,0.23914395]
[1732372771332,0.57051373,98554.0,98553.0,0.19864753]
[1732372773510,2.07051373,98554.0,98553.0,0.19864753]
[1732372773970,2.07051373,98554.0,98550.0,0.091323]
[1732372774205,0.10201427,98551.0,98550.0,0.091323]
[1732372774674,0.44331702,98551.0,98550.0,0.091323]
[1732372779513,0.44331702,98551.0,98550.0,0.241323]
[1732372779951,0.44331702,98551.0,98550.0,0.2421839]
[1732372780403,0.44331702,98551.0,98550.0,0.2651839]
[1732372782391,0.44331702,98551.0,98546.0,0.05071011]
[1732372782616,0.44331702,98551.0,98546.0,0.15218511]
[1732372782617,0.10201427,98547.0,98546.0,0.15218511]
[1732372783064,0.45827446,98547.0,98546.0,0.15218511]
[1732372785206,0.48989321,98547.0,98546.0,0.15218511]
[1732372785659,0.50886121,98547.0,98546.0,0.19320878]
[1732372786883,0.48989321,98547.0,98546.0,0.19320878]
[1732372787117,0.58091538,98547.0,98546.0,0.19320878]
[1732372787353,0.54929663,98547.0,98546.0,0.19320878]
[1732372788068,0.66290489,98547.0,98546.0,0.19320878]
[1732372788775,0.68186976,98547.0,98546.0,0.19320878]
[1732372789007,0.50885194,98547.0,98546.0,0.19320878]
[1732372789486,0.47723933,98547.0,98546.0,0.101475]
[1732372789710,0.47723933,98547.0,98546.0,0.15164928]
[1732372789946,0.50758382,98547.0,98546.0,0.15164928]
[1732372790442,0.45827446,98547.0,98546.0,0.15164928]
[1732372790691,0.50758815,98547.0,98546.0,0.15164928]
[1732372791846,0.47724126,98547.0,98546.0,0.15164928]
[1732372792555,0.50885098,98547.0,98546.0,0.15164928]
[1732372792778,0.53920356,98547.0,98546.0,0.15164928]
[1732372793479,0.53920356,98547.0,98546.0,0.15251018]
[1732372793700,0.53920356,98547.0,98546.0,0.03540488]
[1732372793915,0.98675161,98547.0,98546.0,0.1023359]
[1732372794168,0.79185098,98547.0,98546.0,0.15251018]
[1732372794594,1.12785429,98547.0,98546.0,0.15251018]
[1732372794803,1.23276369,98547.0,98546.0,0.15251018]
[1732372795220,1.1582078,98547.0,98546.0,0.15251018]
[1732372796284,1.1582078,98547.0,98546.0,0.1023359]
[1732372796492,2.65821017,98547.0,98546.0,0.1023359]
[1732372796700,2.84027105,98547.0,98546.0,0.1023359]
[1732372796905,2.60888749,98547.0,98546.0,0.1023359]
[1732372797540,2.71275554,98547.0,98546.0,0.1023359]
[1732372797748,2.57888749,98547.0,98546.0,0.1023359]
[1732372798608,1.07888749,98547.0,98546.0,0.1023359]
[1732372799441,1.26094837,98547.0,98546.0,0.1023359]
[1732372800068,1.07888749,98547.0,98546.0,0.1023359]
[1732372800702,0.74288418,98547.0,98546.0,0.1023359]
[1732372801409,0.87936111,98547.0,98546.0,0.1023359]
[1732372802173,0.74975885,98547.0,98546.0,0.1023359]
[1732372802440,0.61328418,98547.0,98546.0,0.1023359]
[1732372802951,0.41328418,98547.0,98546.0,0.1023359]
[1732372803184,0.61328418,98547.0,98546.0,0.1023359]
[1732372803436,0.61328418,98547.0,98546.0,0.1253359]
[1732372803906,0.54975885,98547.0,98546.0,0.1253359]
[1732372804135,0.74975885,98547.0,98546.0,0.1253359]
[1732372804870,0.61328418,98547.0,98546.0,0.1253359]
[1732372805368,0.54978009,98547.0,98546.0,0.1253359]
[1732372805619,0.74978009,98547.0,98546.0,0.1253359]
[1732372805844,0.61328418,98547.0,98546.0,0.2753359]
[1732372806076,0.41328418,98547.0,98546.0,0.2753359]
[1732372806307,0.61328418,98547.0,98546.0,0.2753359]
[1732372806758,0.70429432,98547.0,98546.0,0.2753359]
[1732372807194,0.61328418,98547.0,98546.0,0.2753359]
[1732372807424,0.70429432,98547.0,98546.0,0.2753359]
[1732372807837,0.61328418,98547.0,98546.0,0.2753359]
[1732372808113,0.70430619,98547.0,98546.0,0.2753359]
[1732372808338,0.66068418,98547.0,98546.0,0.2753359]
[1732372809295,0.66068418,98547.0,98546.0,0.0928255]
[1732372809296,0.71066313,98547.0,98546.0,0.0928255]
[1732372809511,0.71066313,98547.0,98546.0,0.08184186]
[1732372809512,0.79296313,98547.0,98546.0,0.08184186]
[1732372809735,2.29296313,98547.0,98546.0,0.08184186]
[1732372809993,2.38398854,98547.0,98546.0,0.08184186]
[1732372810225,2.29296313,98547.0,98546.0,0.08184186]
[1732372815748,2.24298418,98547.0,98546.0,0.08184186]
[1732372815994,0.74298418,98547.0,98546.0,0.08184186]
[1732372816428,2.24298418,98547.0,98546.0,0.08184186]
[1732372817301,2.37953373,98547.0,98546.0,0.08184186]
[1732372817942,2.39850836,98547.0,98546.0,0.08184186]
[1732372818162,2.43425823,98547.0,98546.0,0.08184186]
[1732372818395,2.43425823,98547.0,98546.0,0.08270276]
[1732372818630,2.43598003,98547.0,98546.0,0.08270276]
[1732372818864,2.26368061,98547.0,98546.0,0.08270276]
[1732372819087,1.0997011,98547.0,98546.0,0.08270276]
[1732372820236,1.03082846,98547.0,98546.0,0.08270276]
[1732372820464,0.66101303,98547.0,98546.0,0.08270276]
[1732372820925,0.53131303,98547.0,98546.0,0.08270276]
[1732372821145,0.79723879,98547.0,98546.0,0.08270276]
[1732372821381,0.55129965,98547.0,98546.0,0.13190276]
[1732372821606,0.55129965,98547.0,98546.0,0.36100276]
[1732372821607,0.11851177,98547.0,98546.0,0.36100276]
[1732372821832,0.10135444,98547.0,98546.0,0.36100276]
[1732372822051,0.12033235,98547.0,98546.0,0.36100276]
[1732372822264,0.42475235,98547.0,98546.0,0.36100276]
[1732372822494,0.0017218,98549.0,98546.0,0.38400276]
[1732372822717,0.0017216,98561.0,98557.0,0.330564]
[1732372822718,0.09101893,98558.0,98557.0,0.330564]
[1732372822945,0.0017216,98561.0,98560.0,0.251461]
[1732372823686,0.3061016,98561.0,98560.0,0.251461]
[1732372824163,0.33643575,98561.0,98560.0,0.251461]
[1732372825266,0.43782597,98561.0,98560.0,0.251461]
[1732372825698,0.43781225,98561.0,98560.0,0.251461]
[1732372826205,0.43781232,98561.0,98560.0,0.251461]
[1732372826661,0.46939801,98561.0,98560.0,0.251461]
[1732372827592,0.46939801,98561.0,98560.0,0.29241452]
[1732372828255,0.43907751,98561.0,98560.0,0.29241452]
[1732372828965,0.40749182,98561.0,98560.0,0.29241452]
[1732372829400,0.40749182,98561.0,98560.0,0.0715176]
[1732372829615,0.40749182,98561.0,98560.0,0.16541452]
[1732372831599,0.40749182,98561.0,98560.0,0.31541452]
[1732372832285,0.4377904,98561.0,98560.0,0.31541452]
[1732372833178,0.3363304,98561.0,98560.0,0.31541452]
[1732372834575,0.25379641,98561.0,98560.0,0.31541452]
[1732372835481,0.17260419,98561.0,98560.0,0.31541452]
[1732372835695,0.15231219,98561.0,98560.0,0.31541452]
[1732372836396,0.07114419,98561.0,98560.0,0.31541452]